[Event "POL-chT 1 Liga 2019"]
[Site "Dzwirzyno"]
[Date "2019.09.07"]
[Round "1.3"]
[White "Rawicz, Karol"]
[Black "Paszewski, Mateusz"]
[Result "1-0"]
[ECO "E32"]
[WhiteElo "2200"]
[BlackElo "2297"]
[Annotator "ChessBase"]
[PlyCount "61"]
[EventDate "2019.09.07"]
[EventType "team-tourn"]
[EventCountry "POL"]
[SourceTitle "playchess.com"]
[Source "ChessBase"]
[SourceQuality "1"]
[TimeControl "40/5400+30:1800+30"]

1. d4 {[%emt 0:00:00]} Nf6 {[%emt 0:00:00]} 2. c4 {[%emt 0:00:00]} e6 {[%emt 0:00:00]} 3. Nc3 {[%emt 0:00:00]} Bb4 {[%emt 0:00:00]} 4. Qc2 {[%emt 0:00:49]} b6 {[%emt 0:01:03]} 5. e4 {[%emt 0:02:49]} c5 {[%emt 0:00:06]} 6. d5 {[%emt 0:02:07]} Qe7 {[%emt 0:00:18]} 7. Nge2 {[%emt 0:05:19]} exd5 {[%emt 0:06:24]} 8. exd5 {[%emt 0:00:21]} d6 {[%emt 0:02:02]} 9. Bd2 {[%emt 0:07:39]} O-O {[%emt 0:03:45]} 10. O-O-O {[%emt 0:39:31]} Ng4 {[%emt 0:18:46]} 11. Be1 {[%emt 0:00:15]} a6 {[%emt 0:01:02]} 12. a3 {[%emt 0:08:03]} Ba5 {[%emt 0:00:46]} 13. Ng3 {[%emt 0:00:59]} b5 {[%emt 0:03:14]} 14. cxb5 {[%emt 0:00:48]} axb5 {[%emt 0:00:13]} 15. Bxb5 {[%emt 0:00:07]} Ba6 {[%emt 0:03:39]} 16. Bxa6 {[%emt 0:02:16]} Nxa6 {[%emt 0:01:09]} 17. Qe4 {[%emt 0:00:48]} Qd7 {[%emt 0:09:52]} 18. Qf5 {[%emt 0:05:42]} Rfd8 {[%emt 0:01:17]} 19. Nce4 {[%emt 0:02:57]} Nc7 {[%emt 0:15:48]} 20. Bxa5 {[%emt 0:14:59]} Rxa5 {[%emt 0:00:12]} 21. Rhe1 {[%emt 0:00:30]} Ra6 {[%emt 0:20:09]} 22. f4 {[%emt 0:00:42]} Rb6 {[%emt 0:00:36]} 23. Rd2 {[%emt 0:02:19]} Nh6 {[%emt 0:02:25]} 24. Qg5 {[%emt 0:01:00]} Kh8 {[%emt 0:03:50]} 25. Nf6 {[%emt 0:01:00]} Qc8 {[%emt 0:02:20]} 26. Ngh5 {[%emt 0:00:07]} Rg8 {[%emt 0:00:07]} 27. Nxg8 {[%emt 0:00:26]} Qxg8 {[%emt 0:00:02]} 28. Rde2 {[%emt 0:00:52]} Rb8 {[%emt 0:00:10]} 29. Re7 {[%emt 0:00:48]} Nb5 {[%emt 0:00:20]} 30. f5 {[%emt 0:00:13]} Nd4 {[%emt 0:00:54]} 31. f6 {[%emt 0:00:32]} 1-0

[Event "POL-chT 1 Liga 2019"]
[Site "Dzwirzyno"]
[Date "2019.09.07"]
[Round "1.4"]
[White "Ciesla, Adam"]
[Black "Jaroch, Karol"]
[Result "1-0"]
[ECO "B50"]
[WhiteElo "2273"]
[BlackElo "2236"]
[Annotator "ChessBase"]
[PlyCount "57"]
[EventDate "2019.09.07"]
[EventType "team-tourn"]
[EventCountry "POL"]
[SourceTitle "playchess.com"]
[Source "ChessBase"]
[SourceQuality "1"]
[TimeControl "40/5400+30:1800+30"]

1. e4 {[%emt 0:00:00]} c5 {[%emt 0:00:00]} 2. Nf3 {[%emt 0:00:00]} d6 {[%emt 0:00:00]} 3. c3 {[%emt 0:00:17]} Nf6 {[%emt 0:00:00]} 4. Be2 {[%emt 0:00:13]} Nc6 {[%emt 0:00:28]} 5. d4 {[%emt 0:00:14]} cxd4 {[%emt 0:01:22]} 6. cxd4 {[%emt 0:00:09]} Nxe4 {[%emt 0:27:08]} 7. d5 {[%emt 0:00:23]} Qa5+ {[%emt 0:00:08]} 8. Nc3 {[%emt 0:00:29]} Nxc3 {[%emt 0:01:28]} 9. bxc3 {[%emt 0:00:18]} Ne5 {[%emt 0:02:21]} 10. Nxe5 {[%emt 0:00:41]} dxe5 {[%emt 0:00:09]} 11. O-O {[%emt 0:15:44]} g6 {[%emt 0:07:52]} 12. Rb1 {[%emt 0:18:44]} a6 {[%emt 0:13:17]} 13. c4 {[%emt 0:07:39]} Bg7 {[%emt 0:02:09]} 14. d6 {[%emt 0:03:46]} Bf6 {[%emt 0:15:43]} 15. Bf3 {[%emt 0:08:57]} exd6 {[%emt 0:05:06]} 16. Qxd6 {[%emt 0:01:11]} Qd8 {[%emt 0:01:07]} 17. Ba3 {[%emt 0:09:37]} Qxd6 {[%emt 0:00:36]} 18. Bxd6 {[%emt 0:00:04]} Be7 {[%emt 0:10:58]} 19. Bxe5 {[%emt 0:00:48]} O-O {[%emt 0:00:13]} 20. Rfd1 {[%emt 0:04:33]} Re8 {[%emt 0:00:13]} 21. Bd4 {[%emt 0:06:07]} Rb8 {[%emt 0:01:58]} 22. c5 {[%emt 0:02:34]} Bf5 {[%emt 0:02:30]} 23. Rxb7 {[%emt 0:07:25]} Rxb7 {[%emt 0:00:02]} 24. Bxb7 {[%emt 0:00:04]} Rd8 {[%emt 0:00:09]} 25. Bf3 {[%emt 0:03:49]} Be4 {[%emt 0:00:21]} 26. Be2 {[%emt 0:02:36]} Bd5 {[%emt 0:01:02]} 27. Be5 {[%emt 0:01:44]} Bxa2 {[%emt 0:06:03]} 28. Rxd8+ {[%emt 0:00:22]} Bxd8 {[%emt 0:00:03]} 29. c6 {[%emt 0:02:08]} 1-0

[Event "POL-chT 1 Liga 2019"]
[Site "Dzwirzyno"]
[Date "2019.09.07"]
[Round "1.5"]
[White "Samborski, Henryk"]
[Black "Tomaszewski, Roman"]
[Result "0-1"]
[ECO "A04"]
[WhiteElo "2098"]
[BlackElo "2195"]
[Annotator "ChessBase"]
[PlyCount "70"]
[EventDate "2019.09.07"]
[EventType "team-tourn"]
[EventCountry "POL"]
[SourceTitle "playchess.com"]
[Source "ChessBase"]
[SourceQuality "1"]
[TimeControl "40/5400+30:1800+30"]

1. Nf3 {[%emt 0:00:00]} f5 {[%emt 0:00:22]} 2. d4 {[%emt 0:01:18]} Nf6 {[%emt 0:00:22]} 3. c4 {[%emt 0:00:47]} e6 {[%emt 0:00:27]} 4. Nc3 {[%emt 0:00:57]} Bb4 {[%emt 0:00:09]} 5. Bd2 {[%emt 0:02:10]} O-O {[%emt 0:04:55]} 6. e3 {[%emt 0:05:17]} b6 {[%emt 0:18:36]} 7. Bd3 {[%emt 0:12:35]} Bb7 {[%emt 0:09:39]} 8. Qc2 {[%emt 0:06:29]} Bxc3 {[%emt 0:20:00]} 9. Bxc3 {[%emt 0:00:14]} Ne4 {[%emt 0:00:01]} 10. O-O-O {[%emt 0:02:38]} d6 {[%emt 0:00:15]} 11. Be1 {[%emt 0:13:49]} Nd7 {[%emt 0:03:45]} 12. h4 {[%emt 0:11:45]} Qe7 {[%emt 0:05:29]} 13. Ng1 {[%emt 0:06:38]} d5 {[%emt 0:05:00]} 14. f3 {[%emt 0:00:44]} dxc4 {[%emt 0:00:16]} 15. Bxc4 {[%emt 0:02:01]} Nd6 {[%emt 0:00:05]} 16. Bb4 {[%emt 0:02:09]} c5 {[%emt 0:04:51]} 17. dxc5 {[%emt 0:00:13]} bxc5 {[%emt 0:00:11]} 18. Ba3 {[%emt 0:07:46]} Nxc4 {[%emt 0:00:47]} 19. Qxc4 {[%emt 0:00:02]} Bd5 {[%emt 0:00:27]} 20. Qc2 {[%emt 0:01:06]} Rfb8 {[%emt 0:11:18]} 21. Kb1 {[%emt 0:00:51]} Nb6 {[%emt 0:01:36]} 22. Bxc5 {[%emt 0:05:09]} Qb7 {[%emt 0:00:08]} 23. Bxb6 {[%emt 0:00:29]} Qxb6 {[%emt 0:01:28]} 24. Ne2 {[%emt 0:01:33]} Qxe3 {[%emt 0:00:57]} 25. Nc3 {[%emt 0:00:13]} Bc4 {[%emt 0:02:14]} 26. Rhe1 {[%emt 0:03:50]} Qf4 {[%emt 0:03:45]} 27. Qf2 {[%emt 0:01:31]} Qc7 {[%emt 0:00:13]} 28. Rc1 {[%emt 0:00:52]} Qa5 {[%emt 0:00:43]} 29. Qd4 {[%emt 0:00:18]} Rb4 {[%emt 0:00:18]} 30. Qe5 {[%emt 0:02:19]} Qa3 {[%emt 0:00:47]} 31. Rc2 {[%emt 0:02:47]} Rab8 {[%emt 0:00:13]} 32. Nd1 {[%emt 0:01:10]} Qxa2+ {[%emt 0:00:53]} 33. Kc1 {[%emt 0:00:02]} Qa1+ {[%emt 0:01:16]} 34. Kd2 {[%emt 0:00:06]} Rd8+ {[%emt 0:00:22]} 35. Kc3 {[%emt 0:02:15]} Rb3+ {[%emt 0:00:13]} 0-1

[Event "POL-chT 1 Liga 2019"]
[Site "Dzwirzyno"]
[Date "2019.09.07"]
[Round "1.6"]
[White "Lach, Aleksandra"]
[Black "Worek, Joanna"]
[Result "0-1"]
[ECO "B31"]
[WhiteElo "2173"]
[BlackElo "2308"]
[Annotator "ChessBase"]
[PlyCount "114"]
[EventDate "2019.09.07"]
[EventType "team-tourn"]
[EventCountry "POL"]
[SourceTitle "playchess.com"]
[Source "ChessBase"]
[SourceQuality "1"]
[TimeControl "40/5400+30:1800+30"]

1. e4 {[%emt 0:00:00]} c5 {[%emt 0:00:00]} 2. Nf3 {[%emt 0:00:06]} Nc6 {[%emt 0:00:00]} 3. Bb5 {[%emt 0:00:53]} g6 {[%emt 0:00:00]} 4. Bxc6 {[%emt 0:00:24]} dxc6 {[%emt 0:00:00]} 5. h3 {[%emt 0:02:32]} Bg7 {[%emt 0:00:00]} 6. O-O {[%emt 0:01:09]} e5 {[%emt 0:02:14]} 7. d3 {[%emt 0:05:01]} Qe7 {[%emt 0:01:01]} 8. a4 {[%emt 0:11:13]} h6 {[%emt 0:06:23]} 9. Na3 {[%emt 0:04:17]} Nf6 {[%emt 0:01:22]} 10. Nc4 {[%emt 0:08:22]} Nd7 {[%emt 0:04:54]} 11. a5 {[%emt 0:01:58]} Nf8 {[%emt 0:09:49]} 12. Bd2 {[%emt 0:04:31]} g5 {[%emt 0:00:20]} 13. Nfxe5 {[%emt 0:04:43]} h5 {[%emt 0:11:40]} 14. Bc3 {[%emt 0:25:59]} f6 {[%emt 0:10:55]} 15. Nf3 {[%emt 0:01:41]} Ng6 {[%emt 0:00:07]} 16. Ne3 {[%emt 0:05:34]} Nf4 {[%emt 0:18:18]} 17. Nf5 {[%emt 0:02:33]} Bxf5 {[%emt 0:03:10]} 18. exf5 {[%emt 0:00:07]} O-O-O {[%emt 0:07:42]} 19. Bd2 {[%emt 0:02:29]} Nd5 {[%emt 0:00:42]} 20. Qe1 {[%emt 0:02:18]} Qc7 {[%emt 0:01:16]} 21. Ra4 {[%emt 0:02:29]} Rhe8 {[%emt 0:01:44]} 22. Re4 {[%emt 0:00:39]} Qd7 {[%emt 0:00:51]} 23. Be3 {[%emt 0:03:53]} Bf8 {[%emt 0:00:49]} 24. Bc1 {[%emt 0:04:20]} Nc7 {[%emt 0:04:53]} 25. Nd2 {[%emt 0:03:53]} Qxf5 {[%emt 0:00:12]} 26. f4 {[%emt 0:00:13]} g4 {[%emt 0:00:46]} 27. Qh4 {[%emt 0:00:48]} Bd6 {[%emt 0:04:12]} 28. Rxe8 Nxe8 {[%emt 0:01:27]} 29. Ne4 {[%emt 0:00:39]} c4 {[%emt 0:00:08]} 30. Ng3 {[%emt 0:00:30]} Qc5+ {[%emt 0:00:33]} 31. Kh1 {[%emt 0:00:50]} cxd3 {[%emt 0:00:34]} 32. cxd3 {[%emt 0:00:09]} Qxa5 {[%emt 0:04:24]} 33. hxg4 {[%emt 0:00:52]} hxg4 {[%emt 0:00:08]} 34. Qxg4+ {[%emt 0:00:01]} Kb8 {[%emt 0:00:37]} 35. Qf5 {[%emt 0:00:46]} Qb6 {[%emt 0:02:23]} 36. Nh5 Qd4 {[%emt 0:00:42]} 37. Qe4 {[%emt 0:01:35]} Qc5 {[%emt 0:00:06]} 38. g4 {[%emt 0:00:46]} Bc7 {[%emt 0:01:04]} 39. Be3 {[%emt 0:00:23]} Qc2 {[%emt 0:00:02]} 40. Rf2 {[%emt 0:00:00]} Qd1+ {[%emt 0:00:00]} 41. Kg2 {[%emt 0:02:48]} Qxg4+ {[%emt 0:03:30]} 42. Ng3 {[%emt 0:00:01]} Nd6 {[%emt 0:02:31]} 43. Qf3 {[%emt 0:00:30]} Qg6 {[%emt 0:00:54]} 44. Kh1 {[%emt 0:03:29]} Nf5 {[%emt 0:06:02]} 45. Nxf5 {[%emt 0:01:38]} Qxf5 {[%emt 0:00:01]} 46. Rd2 {[%emt 0:01:27]} Ba5 47. Rd1 Bb6 {[%emt 0:10:42]} 48. d4 {[%emt 0:06:08]} Qg6 {[%emt 0:02:57]} 49. Qh3 {[%emt 0:03:43]} Qe4+ {[%emt 0:01:29]} 50. Kh2 {[%emt 0:00:48]} a5 {[%emt 0:00:24]} 51. Rd2 Bxd4 {[%emt 0:03:35]} 52. Bxd4 {[%emt 0:09:37]} Rxd4 {[%emt 0:00:05]} 53. Rf2 Ka7 {[%emt 0:03:07]} 54. Qc3 {[%emt 0:01:56]} Rd5 {[%emt 0:00:18]} 55. Qxf6 {[%emt 0:02:04]} Rh5+ {[%emt 0:00:10]} 56. Kg3 {[%emt 0:00:01]} Qe3+ {[%emt 0:00:09]} 57. Kg4 {[%emt 0:00:33]} Qh3# {[%emt 0:00:05]} 0-1

[Event "POL-chT 1 Liga 2019"]
[Site "Dzwirzyno"]
[Date "2019.09.07"]
[Round "1.9"]
[White "Nurkiewicz, Maciej"]
[Black "Kosakowski, Jakub"]
[Result "1/2-1/2"]
[ECO "E10"]
[WhiteElo "2334"]
[BlackElo "2411"]
[Annotator "ChessBase"]
[PlyCount "40"]
[EventDate "2019.09.07"]
[EventType "team-tourn"]
[EventCountry "POL"]
[SourceTitle "playchess.com"]
[Source "ChessBase"]
[SourceQuality "1"]
[TimeControl "40/5400+30:1800+30"]

1. d4 {[%emt 0:00:00]} Nf6 {[%emt 0:00:18]} 2. c4 {[%emt 0:00:00]} e6 {[%emt 0:00:20]} 3. Nf3 {[%emt 0:03:26]} d5 {[%emt 0:00:55]} 4. e3 {[%emt 0:05:21]} a6 {[%emt 0:00:38]} 5. a3 {[%emt 0:18:58]} dxc4 {[%emt 0:12:41]} 6. Bxc4 {[%emt 0:00:12]} c5 {[%emt 0:00:39]} 7. O-O {[%emt 0:04:18]} b5 {[%emt 0:02:56]} 8. Bb3 {[%emt 0:09:12]} Bb7 {[%emt 0:01:01]} 9. Nc3 {[%emt 0:00:52]} Nbd7 {[%emt 0:01:43]} 10. Qe2 {[%emt 0:02:52]} Be7 {[%emt 0:01:15]} 11. Rd1 {[%emt 0:00:12]} O-O {[%emt 0:14:50]} 12. Bc2 {[%emt 0:13:53]} cxd4 {[%emt 0:12:28]} 13. exd4 {[%emt 0:00:16]} h6 {[%emt 0:02:18]} 14. Ne5 {[%emt 0:01:56]} Rc8 {[%emt 0:03:57]} 15. Bxh6 {[%emt 0:12:03]} gxh6 {[%emt 0:01:57]} 16. Qe3 {[%emt 0:00:12]} Kg7 {[%emt 0:16:23]} 17. Qg3+ {[%emt 0:00:13]} Kh8 {[%emt 0:00:06]} 18. Qf4 {[%emt 0:00:24]} Kg7 {[%emt 0:00:24]} 19. Qg3+ {[%emt 0:19:10]} Kh8 {[%emt 0:00:18]} 20. Qf4 {[%emt 0:00:34]} Kg7 {[%emt 0:00:07]} 1/2-1/2

[Event "POL-chT 1 Liga 2019"]
[Site "Dzwirzyno"]
[Date "2019.09.07"]
[Round "1.10"]
[White "Walter, Szymon"]
[Black "Bartel, Michal"]
[Result "1/2-1/2"]
[ECO "C18"]
[WhiteElo "2311"]
[BlackElo "2291"]
[Annotator "ChessBase"]
[PlyCount "108"]
[EventDate "2019.09.07"]
[EventType "team-tourn"]
[EventCountry "POL"]
[SourceTitle "playchess.com"]
[Source "ChessBase"]
[SourceQuality "1"]
[TimeControl "40/5400+30:1800+30"]

1. e4 {[%emt 0:00:00]} e6 {[%emt 0:00:00]} 2. d4 {[%emt 0:00:00]} d5 {[%emt 0:00:00]} 3. Nc3 {[%emt 0:00:06]} Bb4 {[%emt 0:00:00]} 4. e5 {[%emt 0:02:57]} c5 {[%emt 0:00:00]} 5. a3 {[%emt 0:00:13]} Bxc3+ {[%emt 0:00:06]} 6. bxc3 {[%emt 0:00:05]} Ne7 {[%emt 0:00:06]} 7. h4 {[%emt 0:00:42]} Qc7 {[%emt 0:00:32]} 8. h5 {[%emt 0:01:12]} cxd4 {[%emt 0:10:06]} 9. cxd4 {[%emt 0:00:08]} Qc3+ {[%emt 0:00:07]} 10. Bd2 {[%emt 0:00:08]} Qxd4 {[%emt 0:00:05]} 11. Nf3 {[%emt 0:01:26]} Qc5 {[%emt 0:00:30]} 12. h6 {[%emt 0:26:12]} gxh6 {[%emt 0:00:33]} 13. Bd3 {[%emt 0:01:42]} Nbc6 {[%emt 0:00:41]} 14. Rxh6 {[%emt 0:06:57]} Bd7 {[%emt 0:01:38]} 15. Kf1 {[%emt 0:01:22]} O-O-O {[%emt 0:04:22]} 16. Bg5 {[%emt 0:26:50]} Rdf8 {[%emt 0:09:08]} 17. Qd2 {[%emt 0:02:19]} Ng8 {[%emt 0:05:08]} 18. Rh4 {[%emt 0:05:55]} f6 {[%emt 0:01:46]} 19. Be3 {[%emt 0:00:17]} Qe7 {[%emt 0:10:06]} 20. Qc3 {[%emt 0:01:01]} b6 {[%emt 0:04:12]} 21. Nd4 {[%emt 0:04:16]} Qc5 {[%emt 0:16:55]} 22. Qxc5 {[%emt 0:04:54]} bxc5 {[%emt 0:00:03]} 23. Nxc6 {[%emt 0:00:14]} Bxc6 {[%emt 0:00:09]} 24. Bxc5 {[%emt 0:00:08]} Rf7 {[%emt 0:00:19]} 25. Rf4 {[%emt 0:03:04]} f5 {[%emt 0:01:04]} 26. Rb1 {[%emt 0:01:06]} Nh6 {[%emt 0:02:24]} 27. Rfb4 {[%emt 0:01:39]} Rg8 {[%emt 0:00:32]} 28. Rb8+ {[%emt 0:01:58]} Kd7 {[%emt 0:00:01]} 29. Bxa7 {[%emt 0:01:26]} Rff8 {[%emt 0:01:35]} 30. Rxf8 {[%emt 0:02:01]} Rxf8 {[%emt 0:00:01]} 31. Bc5 {[%emt 0:02:20]} Ra8 {[%emt 0:00:24]} 32. f3 {[%emt 0:01:10]} Nf7 {[%emt 0:01:03]} 33. Re1 {[%emt 0:00:25]} Ba4 {[%emt 0:01:52]} 34. Re2 {[%emt 0:02:02]} Rb8 {[%emt 0:04:56]} 35. Kf2 {[%emt 0:00:32]} Rb2 {[%emt 0:01:32]} 36. g3 {[%emt 0:00:41]} Kc6 {[%emt 0:00:29]} 37. Bb4 {[%emt 0:00:30]} d4 {[%emt 0:03:16]} 38. f4 {[%emt 0:00:31]} Nh6 {[%emt 0:01:56]} 39. Ke1 {[%emt 0:00:28]} Rb1+ {[%emt 0:09:11]} 40. Kd2 {[%emt 0:00:00]} Rg1 {[%emt 0:00:00]} 41. Rh2 {[%emt 0:04:25]} Ng4 {[%emt 0:00:38]} 42. Rxh7 {[%emt 0:07:20]} Rg2+ {[%emt 0:23:03]} 43. Kc1 {[%emt 0:01:26]} Nf2 {[%emt 0:00:19]} 44. Re7 {[%emt 0:12:28]} Nxd3+ {[%emt 0:00:09]} 45. cxd3 {[%emt 0:00:05]} Bb3 {[%emt 0:00:05]} 46. a4 {[%emt 0:04:27]} Rxg3 {[%emt 0:03:10]} 47. a5 {[%emt 0:01:07]} Rxd3 {[%emt 0:00:22]} 48. a6 {[%emt 0:00:23]} Kb5 {[%emt 0:01:34]} 49. a7 {[%emt 0:00:25]} Bd5 {[%emt 0:00:03]} 50. Bd6 {[%emt 0:01:44]} Rc3+ {[%emt 0:01:23]} 51. Kd2 {[%emt 0:00:13]} Be4 {[%emt 0:00:32]} 52. Rc7 {[%emt 0:00:54]} Rb3 {[%emt 0:02:44]} 53. Rc5+ {[%emt 0:00:51]} Kb6 {[%emt 0:00:14]} 54. Rc4 {[%emt 0:00:38]} Rb2+ {[%emt 0:04:06]} 1/2-1/2

[Event "POL-chT 1 Liga 2019"]
[Site "Dzwirzyno"]
[Date "2019.09.07"]
[Round "1.11"]
[White "Sliwerski, Radoslaw"]
[Black "Dzierzak, Radoslaw"]
[Result "1/2-1/2"]
[ECO "E20"]
[WhiteElo "2078"]
[BlackElo "2253"]
[Annotator "ChessBase"]
[PlyCount "83"]
[EventDate "2019.09.07"]
[EventType "team-tourn"]
[EventCountry "POL"]
[SourceTitle "playchess.com"]
[Source "ChessBase"]
[SourceQuality "1"]
[TimeControl "40/5400+30:1800+30"]

1. d4 {[%emt 0:00:00]} Nf6 {[%emt 0:00:00]} 2. c4 {[%emt 0:00:00]} e6 {[%emt 0:00:05]} 3. Nc3 {[%emt 0:00:00]} Bb4 {[%emt 0:00:15]} 4. g3 {[%emt 0:00:00]} c5 {[%emt 0:00:18]} 5. Nf3 {[%emt 0:00:13]} Bxc3+ {[%emt 0:00:24]} 6. bxc3 {[%emt 0:00:06]} Qa5 {[%emt 0:00:07]} 7. Bd2 {[%emt 0:04:39]} b6 {[%emt 0:00:30]} 8. Bg2 {[%emt 0:01:02]} Bb7 {[%emt 0:00:06]} 9. O-O {[%emt 0:02:07]} O-O {[%emt 0:00:16]} 10. Qb3 {[%emt 0:08:51]} Qa6 {[%emt 0:14:29]} 11. Bf4 {[%emt 0:23:33]} Nc6 {[%emt 0:10:39]} 12. dxc5 {[%emt 0:15:19]} Na5 {[%emt 0:02:54]} 13. Qb5 {[%emt 0:00:18]} Qxb5 {[%emt 0:04:37]} 14. cxb5 {[%emt 0:00:02]} bxc5 {[%emt 0:00:26]} 15. Bd6 {[%emt 0:05:45]} Rfc8 {[%emt 0:00:52]} 16. Nd2 {[%emt 0:02:32]} Bxg2 {[%emt 0:07:04]} 17. Kxg2 {[%emt 0:00:03]} Ne8 {[%emt 0:06:18]} 18. Bf4 {[%emt 0:02:01]} d5 {[%emt 0:07:37]} 19. c4 {[%emt 0:01:53]} f6 {[%emt 0:06:25]} 20. g4 {[%emt 0:02:22]} e5 {[%emt 0:03:07]} 21. Bg3 {[%emt 0:00:01]} Nxc4 {[%emt 0:02:23]} 22. Nxc4 {[%emt 0:00:02]} dxc4 {[%emt 0:00:07]} 23. f4 {[%emt 0:01:50]} exf4 {[%emt 0:05:18]} 24. Bxf4 {[%emt 0:01:21]} Nc7 {[%emt 0:00:18]} 25. Bxc7 {[%emt 0:04:35]} Rxc7 {[%emt 0:00:06]} 26. Rac1 {[%emt 0:01:08]} Re8 {[%emt 0:01:49]} 27. Rc2 {[%emt 0:05:29]} Re4 {[%emt 0:03:03]} 28. h3 {[%emt 0:00:41]} Rce7 {[%emt 0:02:27]} 29. Kf2 {[%emt 0:04:34]} Re3 {[%emt 0:06:42]} 30. Rxc4 {[%emt 0:02:33]} Rxe2+ {[%emt 0:00:27]} 31. Kg3 {[%emt 0:00:02]} Rxa2 {[%emt 0:06:54]} 32. Rxc5 {[%emt 0:00:07]} Ree2 {[%emt 0:05:53]} 33. Rf3 {[%emt 0:01:08]} Kf7 {[%emt 0:01:10]} 34. Rd3 {[%emt 0:02:23]} Kg6 {[%emt 0:02:32]} 35. Rc7 {[%emt 0:00:26]} Rg2+ {[%emt 0:00:31]} 36. Kf3 {[%emt 0:00:33]} Rgf2+ {[%emt 0:00:29]} 37. Kg3 {[%emt 0:00:40]} Rg2+ {[%emt 0:00:07]} 38. Kf3 {[%emt 0:00:12]} Raf2+ {[%emt 0:00:13]} 39. Ke4 {[%emt 0:01:24]} Re2+ {[%emt 0:00:36]} 40. Kf3 {[%emt 0:00:00]} Ref2+ {[%emt 0:00:00]} 41. Ke4 {[%emt 0:04:47]} Re2+ {[%emt 0:08:15]} 42. Kf3 {[%emt 0:01:05]} 1/2-1/2

[Event "POL-chT 1 Liga 2019"]
[Site "Dzwirzyno"]
[Date "2019.09.07"]
[Round "1.12"]
[White "Malicka, Maria"]
[Black "Kulon, Klaudia"]
[Result "1/2-1/2"]
[ECO "C77"]
[WhiteElo "2095"]
[BlackElo "2339"]
[Annotator "ChessBase"]
[PlyCount "103"]
[EventDate "2019.09.07"]
[EventType "team-tourn"]
[EventCountry "POL"]
[SourceTitle "playchess.com"]
[Source "ChessBase"]
[SourceQuality "1"]
[TimeControl "40/5400+30:1800+30"]

1. e4 {[%emt 0:00:00]} e5 {[%emt 0:00:00]} 2. Nf3 {[%emt 0:00:00]} Nc6 {[%emt 0:00:00]} 3. Bb5 {[%emt 0:00:00]} a6 {[%emt 0:00:00]} 4. Ba4 {[%emt 0:00:00]} Nf6 {[%emt 0:00:00]} 5. d3 {[%emt 0:00:00]} d6 {[%emt 0:00:01]} 6. c3 {[%emt 0:00:01]} g6 {[%emt 0:00:14]} 7. Nbd2 {[%emt 0:00:26]} Bg7 {[%emt 0:00:06]} 8. O-O {[%emt 0:00:09]} O-O {[%emt 0:00:03]} 9. Re1 {[%emt 0:00:30]} Bd7 {[%emt 0:00:06]} 10. Nf1 {[%emt 0:02:49]} Nh5 {[%emt 0:00:04]} 11. Ng3 {[%emt 0:14:22]} Nxg3 {[%emt 0:07:57]} 12. fxg3 {[%emt 0:01:39]} h6 {[%emt 0:00:45]} 13. Be3 {[%emt 0:00:44]} b5 {[%emt 0:01:37]} 14. Bb3 {[%emt 0:07:39]} Na5 {[%emt 0:03:10]} 15. Qd2 {[%emt 0:00:47]} Nxb3 {[%emt 0:03:24]} 16. axb3 {[%emt 0:00:05]} Kh7 {[%emt 0:00:21]} 17. b4 {[%emt 0:04:52]} Bc6 {[%emt 0:02:22]} 18. g4 {[%emt 0:12:57]} Bb7 {[%emt 0:09:41]} 19. g5 {[%emt 0:01:48]} h5 {[%emt 0:01:19]} 20. Rf1 {[%emt 0:01:18]} Qd7 {[%emt 0:04:26]} 21. Qf2 {[%emt 0:03:32]} d5 {[%emt 0:07:02]} 22. exd5 {[%emt 0:04:31]} Qxd5 {[%emt 0:00:08]} 23. d4 {[%emt 0:08:18]} e4 {[%emt 0:09:48]} 24. Nd2 {[%emt 0:04:42]} Kg8 {[%emt 0:01:18]} 25. Qg3 {[%emt 0:01:32]} Rac8 {[%emt 0:02:33]} 26. Ra3 {[%emt 0:02:10]} Rfe8 {[%emt 0:04:35]} 27. Nb3 {[%emt 0:01:31]} Bf8 {[%emt 0:00:17]} 28. Nc5 {[%emt 0:02:05]} Bxc5 {[%emt 0:02:42]} 29. dxc5 {[%emt 0:04:09]} Re6 {[%emt 0:02:33]} 30. Raa1 {[%emt 0:01:17]} Re7 {[%emt 0:09:02]} 31. Rad1 {[%emt 0:02:09]} Qb3 {[%emt 0:01:46]} 32. Rd2 {[%emt 0:06:27]} Rce8 {[%emt 0:01:07]} 33. Rfd1 {[%emt 0:04:58]} Bc8 {[%emt 0:00:37]} 34. Qf2 {[%emt 0:02:12]} Bg4 {[%emt 0:02:37]} 35. Ra1 {[%emt 0:00:22]} Qe6 {[%emt 0:00:16]} 36. h3 {[%emt 0:03:12]} Bf5 {[%emt 0:00:02]} 37. Rad1 {[%emt 0:00:16]} f6 {[%emt 0:04:59]} 38. gxf6 {[%emt 0:00:27]} Rf7 {[%emt 0:01:25]} 39. Rd8 {[%emt 0:02:17]} Rxf6 {[%emt 0:00:44]} 40. Rxe8+ {[%emt 0:00:00]} Qxe8 {[%emt 0:00:00]} 41. g4 {[%emt 0:20:42]} hxg4 {[%emt 0:14:03]} 42. Qh4 {[%emt 0:07:05]} Rf8 {[%emt 0:04:37]} 43. hxg4 {[%emt 0:01:02]} g5 {[%emt 0:10:02]} 44. Qxg5+ {[%emt 0:01:23]} Bg6 {[%emt 0:00:01]} 45. Rd5 {[%emt 0:02:57]} Qf7 {[%emt 0:01:10]} 46. Rf5 {[%emt 0:00:15]} Qe6 {[%emt 0:00:27]} 47. Rxf8+ {[%emt 0:00:25]} Kxf8 {[%emt 0:00:01]} 48. Qf4+ {[%emt 0:01:23]} Ke8 {[%emt 0:00:28]} 49. Bd4 {[%emt 0:01:11]} Kd7 {[%emt 0:02:14]} 50. Be5 {[%emt 0:00:37]} Qc6 {[%emt 0:02:23]} 51. Qf6 {[%emt 0:01:05]} Qxf6 {[%emt 0:00:15]} 52. Bxf6 {[%emt 0:00:01]} 1/2-1/2

[Event "POL-chT 1 Liga 2019"]
[Site "Dzwirzyno"]
[Date "2019.09.07"]
[Round "1.13"]
[White "Szwed, Jacek"]
[Black "Sapis, Witalis"]
[Result "1/2-1/2"]
[ECO "B17"]
[WhiteElo "2370"]
[BlackElo "2376"]
[Annotator "ChessBase"]
[PlyCount "54"]
[EventDate "2019.09.07"]
[EventType "team-tourn"]
[EventCountry "POL"]
[SourceTitle "playchess.com"]
[Source "ChessBase"]
[SourceQuality "1"]
[TimeControl "40/5400+30:1800+30"]

1. e4 {[%emt 0:02:39]} c6 {[%emt 0:00:00]} 2. d4 {[%emt 0:00:15]} d5 {[%emt 0:00:00]} 3. Nd2 {[%emt 0:00:03]} dxe4 {[%emt 0:00:00]} 4. Nxe4 {[%emt 0:00:06]} Nd7 {[%emt 0:00:12]} 5. Ng5 {[%emt 0:00:09]} Ngf6 {[%emt 0:00:10]} 6. Bd3 {[%emt 0:00:26]} e6 {[%emt 0:00:07]} 7. N1f3 {[%emt 0:00:04]} Bd6 {[%emt 0:00:10]} 8. Qe2 {[%emt 0:00:06]} h6 {[%emt 0:00:14]} 9. Ne4 {[%emt 0:00:05]} Nxe4 {[%emt 0:00:06]} 10. Qxe4 {[%emt 0:00:15]} Nf6 {[%emt 0:00:06]} 11. Qe2 {[%emt 0:00:06]} b6 {[%emt 0:00:24]} 12. Bd2 {[%emt 0:00:19]} Bb7 {[%emt 0:00:20]} 13. Ne5 {[%emt 0:00:14]} Qc7 {[%emt 0:00:47]} 14. f4 {[%emt 0:00:13]} O-O-O {[%emt 0:04:44]} 15. O-O {[%emt 0:00:18]} c5 {[%emt 0:05:21]} 16. a4 {[%emt 0:00:23]} cxd4 {[%emt 0:05:49]} 17. a5 {[%emt 0:00:11]} Nd5 {[%emt 0:25:26]} 18. axb6 {[%emt 0:01:53]} axb6 {[%emt 0:00:13]} 19. Ra4 {[%emt 0:00:12]} Bxe5 {[%emt 0:06:30]} 20. Rc4 {[%emt 0:00:49]} Bf6 {[%emt 0:06:30]} 21. Rxc7+ {[%emt 0:02:04]} Kxc7 {[%emt 0:02:56]} 22. Ba6 {[%emt 0:35:51]} Rd6 {[%emt 0:15:39]} 23. Bxb7 {[%emt 0:26:13]} Kxb7 {[%emt 0:00:04]} 24. Ra1 {[%emt 0:00:01]} Ra8 {[%emt 0:02:38]} 25. Rxa8 {[%emt 0:00:40]} Kxa8 {[%emt 0:00:04]} 26. Qb5 {[%emt 0:00:04]} Nc7 {[%emt 0:02:28]} 27. Qb3 {[%emt 0:12:19]} Kb7 {[%emt 0:01:54]} 1/2-1/2